fUSD/lending_fUSD_20250708
["ID","MTS","AMOUNT","RATE_DAILY","PERIOD"]
[370328743,1751962241264,-500.0,0.00028373,3]
[370328744,1751962241275,-501.45940511,0.00028373,5]
[370328745,1751962241285,-500.0,0.00028373,5]
[370328746,1751962241295,-500.0,0.00028373,5]
[370328747,1751962241305,-102.21901787,0.00028373,5]
[370328751,1751962242814,-150.0,0.00026812,2]
[370328752,1751962242825,-150.0,0.00026828,2]
[370328753,1751962242835,-150.0,0.00026834,2]
[370328754,1751962242845,-150.0,0.00026879,2]
[370328755,1751962242855,-150.0,0.000269,2]
[370328756,1751962242865,-150.0,0.00026959,2]
[370328757,1751962242874,-150.0,0.00027022,2]
[370328758,1751962242885,-150.0,0.00027108,2]
[370328759,1751962242894,-150.0,0.00027131,2]
[370328760,1751962242905,-150.0,0.00027156,2]
[370328761,1751962242915,-150.0,0.00027186,2]
[370328762,1751962242925,-150.0,0.00027316,2]
[370328763,1751962242934,-150.0,0.00027323,2]
[370328764,1751962242944,-150.0,0.00027391,2]
[370328765,1751962242955,-150.0,0.00027397,2]
[370328766,1751962242965,-150.0,0.000274,2]
[370328767,1751962242975,-150.0,0.00027445,2]
[370328768,1751962242984,-150.0,0.00027494,2]
[370328769,1751962242994,-150.0,0.00027507,2]
[370328770,1751962243003,-150.0,0.00027582,2]
[370328771,1751962243013,-150.0,0.00027652,2]
[370328772,1751962243023,-150.0,0.0002766,2]
[370328773,1751962243037,-150.0,0.0002768,2]
[370328775,1751962243051,-150.0,0.00027696,2]
[370328777,1751962243060,-150.0,0.00027701,2]
[370328778,1751962243070,-150.0,0.00027714,2]
[370328779,1751962243080,-150.0,0.00027718,2]
[370328780,1751962243091,-150.0,0.00027747,2]
[370328781,1751962243100,-1000.0,0.00027797,2]
[370328782,1751962243110,-150.0,0.00027809,2]
[370328783,1751962243123,-150.0,0.00027853,2]
[370328784,1751962243132,-150.0,0.00027872,2]
[370328785,1751962243143,-150.0,0.00027877,2]
[370328786,1751962243152,-150.0,0.00027928,2]
[370328787,1751962243162,-150.0,0.00027961,2]
[370328788,1751962243171,-150.0,0.00027992,2]
[370328789,1751962243181,-150.0,0.00028056,2]
[370328790,1751962243190,-150.0,0.00028083,2]
[370328791,1751962243200,-150.0,0.00028183,2]
[370328792,1751962243210,-150.0,0.00028186,2]
[370328793,1751962243221,-954.2893,0.00028273,2]
[370328794,1751962243231,-155.99492245,0.00028273,2]
[370328795,1751962243241,-150.0,0.00028321,2]
[370328796,1751962243251,-150.0,0.00028323,2]
[370328797,1751962243260,-150.0,0.00028331,2]
[370328798,1751962243270,-150.0,0.00028353,2]
[370328800,1751962243280,-150.0,0.00028357,2]
[370328802,1751962243290,-466.48601077,0.00028373,5]
[370328804,1751962243300,-497.04991112,0.00028373,5]
[370328806,1751962243310,-500.0,0.00028373,5]
[370328808,1751962243320,-500.0,0.00028373,2]
[370328810,1751962243329,-210.14420062,0.00028373,5]
[370328812,1751962243340,-303.0365513,0.00028373,5]
[370328814,1751962243349,-500.0,0.00028373,5]
[370328816,1751962243359,-368.08848084,0.00028373,5]
[370328817,1751962243368,-500.0,0.00028373,5]
[370328819,1751962243378,-500.0,0.00028373,5]
[370328821,1751962243388,-500.0,0.00028373,3]
[370328823,1751962243398,-160.92939487,0.00028373,2]
[370328824,1751962243408,-5396.22,0.00028373,3]
[370328825,1751962243418,-5000.0,0.00028373,2]
[370328826,1751962243428,-460.0,0.00028373,3]
[370328827,1751962243438,-719.28,0.00028373,3]
[370328828,1751962243447,-460.0,0.00028373,3]
[370328829,1751962243457,-460.0,0.00028373,3]
[370328830,1751962243467,-3100.46,0.00028373,3]
[370328831,1751962243477,-460.0,0.00028373,3]
[370328832,1751962243486,-460.0,0.00028373,3]
[370328833,1751962243496,-460.0,0.00028373,3]
[370328834,1751962243506,-460.0,0.00028373,3]
[370328835,1751962243516,-1097.33,0.00028373,3]
[370328836,1751962243526,-460.0,0.00028373,3]
[370328837,1751962243536,-1386.12,0.00028373,3]
[370328838,1751962243545,-839.92,0.00028373,3]
[370328839,1751962243555,-460.0,0.00028373,3]
[370328840,1751962243565,-460.0,0.00028373,3]
[370328841,1751962243574,-508.15,0.00028373,3]
[370328842,1751962243584,-943.19,0.00028373,3]
[370328843,1751962243594,-460.0,0.00028373,3]
[370328844,1751962243604,-460.0,0.00028373,3]
[370328845,1751962243614,-460.0,0.00028373,3]
[370328846,1751962243624,-460.0,0.00028373,3]
[370328847,1751962243633,-460.0,0.00028373,3]
[370328848,1751962243644,-2473.06,0.00028373,3]
[370328849,1751962243653,-1372.93,0.00028373,3]
[370328850,1751962243663,-1091.58,0.00028373,3]
[370328851,1751962243673,-682.36,0.00028373,3]
[370328852,1751962243683,-460.0,0.00028373,3]
[370328853,1751962243693,-1106.53,0.00028373,3]
[370328854,1751962243703,-637.24,0.00028373,3]
[370328855,1751962243713,-460.0,0.00028373,3]
[370328856,1751962243723,-603.5,0.00028373,3]
[370328857,1751962243733,-460.0,0.00028373,3]
[370328858,1751962243742,-460.0,0.00028373,3]
[370328859,1751962243752,-460.0,0.00028373,3]
[370328860,1751962243762,-929.4040905,0.00028373,3]
[370328861,1751962244459,-2.0459095,0.00028373,3]
[370328862,1751962244469,-1146.13,0.00028373,3]
[370328863,1751962244479,-460.0,0.00028373,3]
[370328864,1751962244488,-810.88,0.00028373,3]
[370328865,1751962244498,-460.0,0.00028373,3]
[370328866,1751962244507,-570.23,0.00028373,3]
[370328867,1751962244517,-751.94,0.00028373,3]
[370328868,1751962244527,-460.0,0.00028373,3]
[370328869,1751962244536,-1048.74,0.00028373,3]
[370328870,1751962244546,-1066.33,0.00028373,3]
[370328871,1751962244556,-460.0,0.00028373,2]
[370328872,1751962244566,-4135.61,0.00028373,3]
[370328873,1751962244576,-460.0,0.00028373,3]
[370328874,1751962244586,-460.0,0.00028373,3]
[370328875,1751962244595,-913.34,0.00028373,3]
[370328876,1751962244605,-1541.25,0.00028373,3]
[370328877,1751962244615,-460.0,0.00028373,3]
[370328878,1751962244624,-460.0,0.00028373,3]
[370328879,1751962244634,-460.0,0.00028373,3]
[370328880,1751962244645,-460.0,0.00028373,3]
[370328881,1751962244655,-460.0,0.00028373,3]
[370328882,1751962244667,-460.0,0.00028373,3]
[370328883,1751962244678,-533.72,0.00028373,3]
[370328884,1751962244689,-460.0,0.00028374,3]
[370328885,1751962244698,-460.0,0.00028374,3]
[370328886,1751962244708,-1000.0,0.00028374,3]
[370328887,1751962244717,-587.89,0.00028374,3]
[370328888,1751962244727,-460.0,0.00028374,3]
[370328889,1751962244736,-509.9896856,0.00028374,3]
[370328890,1751962244746,-755.03,0.00028374,3]
[370328891,1751962244755,-460.0,0.00028374,3]
[370328892,1751962244852,-460.0,0.00028374,3]
[370328893,1751962244862,-460.0,0.00028374,3]
[370328894,1751962244871,-460.0,0.00028374,3]
[370328895,1751962244881,-460.0,0.00028374,3]
[370328896,1751962244891,-460.0,0.00028374,3]
[370328897,1751962244901,-460.0,0.00028374,3]
[370328898,1751962244911,-520.7,0.00028374,3]
[370328899,1751962244920,-419.81888727,0.00028374,3]
[370328900,1751962244929,-460.0,0.00028374,3]
[370328901,1751962244939,-499.64,0.00028374,3]
[370328902,1751962244948,-1416.89,0.00028374,3]
[370328903,1751962244958,-1764.26,0.00028374,3]
[370328904,1751962244969,-8534.57,0.00028374,3]
[370328905,1751962244978,-460.0,0.00028374,3]
[370328906,1751962244988,-659.64,0.00028374,3]
[370328907,1751962244998,-159.225285,0.00028374,3]
[370328908,1751962245007,-167.007977,0.00028374,3]
[370328909,1751962245017,-1143.653771,0.00028374,3]
[370328910,1751962245026,-158.447063,0.00028374,3]
[370328911,1751962245036,-1168.350145,0.00028374,3]
[370328912,1751962245049,-718.66,0.00028374,3]
[370328913,1751962245059,-1241.11657,0.00028374,3]
[370328914,1751962245068,-3960.3,0.00028374,3]
[370328915,1751962245077,-1136.83,0.00028374,3]
[370328916,1751962245087,-460.0,0.00028374,3]
[370328917,1751962245097,-460.0,0.00028374,3]
[370328918,1751962245106,-734.49,0.00028374,3]
[370328919,1751962245117,-769.54,0.00028374,3]
[370328920,1751962245127,-460.0,0.00028374,3]
[370328921,1751962245138,-460.0,0.00028374,3]
[370328922,1751962245147,-3431.08,0.00028374,3]
[370328923,1751962245156,-460.0,0.00028374,3]
[370328924,1751962245166,-1415.64,0.00028374,3]
[370328925,1751962245175,-3532.23,0.00028374,3]
[370328926,1751962245184,-460.0,0.00028374,3]
[370328927,1751962245193,-2305.74,0.00028374,3]
[370328928,1751962245203,-170.86490093,0.00028374,2]
[370328930,1751962245212,-158.814024,0.00028375,7]
[370328931,1751962245222,-151.0,0.00028375,7]
[370328932,1751962245232,-151.0,0.00028375,7]
[370328933,1751962245241,-151.0,0.00028375,7]
[370328934,1751962245251,-151.0,0.00028375,7]
[370328935,1751962245261,-151.0,0.00028375,7]
[370328936,1751962245270,-151.0,0.00028375,7]
[370328937,1751962245280,-151.0,0.00028375,7]
[370328938,1751962245289,-151.0,0.00028375,7]
[370328939,1751962245300,-151.0,0.00028375,7]
[370328940,1751962245309,-151.0,0.00028375,7]
[370328941,1751962245319,-151.0,0.00028375,7]
[370328942,1751962245328,-151.0,0.00028375,7]
[370328943,1751962245338,-151.0,0.00028375,7]
[370328944,1751962245348,-151.0,0.00028375,7]
[370328945,1751962245357,-151.0,0.00028375,7]
[370328946,1751962245367,-151.0,0.00028375,7]
[370328947,1751962245377,-2630.82865003,0.00028375,2]
[370328948,1751962245387,-460.0,0.00028377,3]
[370328949,1751962245396,-492.14,0.00028377,3]
[370328950,1751962245406,-919.23,0.00028377,3]
[370328951,1751962245415,-1561.45,0.00028377,3]
[370328952,1751962245425,-460.0,0.00028377,3]
[370328953,1751962245435,-460.0,0.00028377,3]
[370328954,1751962245444,-460.0,0.00028377,3]
[370328955,1751962245454,-460.0,0.00028377,3]
[370328956,1751962245464,-800.35,0.00028377,3]
[370328957,1751962245473,-460.0,0.00028377,3]
[370328958,1751962245483,-460.0,0.00028377,3]
[370328959,1751962245492,-460.0,0.00028377,3]
[370328960,1751962245502,-544.56,0.00028377,3]
[370328961,1751962245512,-460.0,0.00028377,3]
[370328962,1751962245522,-475.68,0.00028377,3]
[370328963,1751962245531,-460.0,0.00028377,3]
[370328964,1751962245540,-533.6,0.00028377,3]
[370328965,1751962245550,-460.0,0.00028377,3]
[370328966,1751962245559,-460.0,0.00028377,3]
[370328967,1751962245568,-1257.65,0.00028377,3]
[370328968,1751962245579,-1159.74,0.00028377,3]
[370328969,1751962245588,-460.0,0.00028377,3]
[370328970,1751962245598,-460.0,0.00028377,3]
[370328971,1751962245608,-555.83,0.00028377,3]
[370328972,1751962245617,-460.0,0.00028377,3]
[370328973,1751962245627,-460.0,0.00028377,3]
[370328974,1751962245637,-460.0,0.00028377,3]
[370328975,1751962245647,-460.0,0.00028377,3]
[370328976,1751962245656,-743.32,0.00028377,3]
[370328977,1751962245666,-582.36,0.00028377,3]
[370328978,1751962245675,-995.44,0.00028377,3]
[370328979,1751962245684,-1461.93,0.00028377,3]
[370328980,1751962245694,-460.0,0.00028377,3]
[370328981,1751962245703,-460.0,0.00028377,3]
[370328982,1751962245713,-535.42,0.00028377,3]
[370328983,1751962245723,-1544.62,0.00028377,3]
[370328984,1751962245732,-1087.5,0.00028377,3]
[370328985,1751962245742,-782.0,0.00028377,3]
[370328986,1751962245752,-475.8,0.00028377,3]
[370328987,1751962245761,-604.67,0.00028377,3]
[370328988,1751962245771,-594.39,0.00028377,3]
[370328989,1751962245781,-1642.18,0.00028377,3]
[370328990,1751962245790,-460.0,0.00028377,3]
[370328991,1751962245800,-460.0,0.00028377,3]
[370328992,1751962245810,-501.79,0.00028377,3]
[370328993,1751962245820,-807.19,0.00028377,3]
[370328994,1751962245829,-642.58,0.00028377,3]
[370328995,1751962245839,-564.59,0.00028377,3]
[370328996,1751962245849,-460.0,0.00028377,3]
[370328997,1751962245858,-649.92,0.00028377,3]
[370328998,1751962245868,-602.37,0.00028377,3]
[370328999,1751962245877,-673.0,0.00028377,3]
[370329000,1751962245887,-565.44,0.00028377,3]
[370329001,1751962245896,-1965.25,0.00028377,3]
[370329002,1751962245911,-460.0,0.00028377,3]
[370329003,1751962245921,-486.98,0.00028377,3]
[370329004,1751962245931,-460.0,0.00028377,3]
[370329005,1751962245940,-460.0,0.00028377,3]
[370329006,1751962245951,-559.13,0.00028377,3]
[370329007,1751962245960,-460.0,0.00028377,3]
[370329008,1751962245970,-460.0,0.00028377,3]
[370329009,1751962245981,-460.0,0.00028377,3]
[370329010,1751962245991,-1255.32,0.00028377,3]
[370329011,1751962246000,-460.0,0.00028377,3]
[370329012,1751962246010,-460.0,0.00028377,3]
[370329013,1751962246019,-460.0,0.00028377,3]
[370329014,1751962246028,-460.0,0.00028377,3]
[370329015,1751962246038,-534.23,0.00028377,3]
[370329016,1751962246053,-516.27,0.00028377,3]
[370329017,1751962246062,-2323.08,0.00028377,3]
[370329018,1751962246072,-994.11,0.00028377,3]
[370329019,1751962246081,-460.0,0.00028377,3]
[370329020,1751962246091,-1083.38,0.00028377,3]
[370329021,1751962246103,-664.72,0.00028377,3]
[370329022,1751962246112,-727.62,0.00028377,3]
[370329023,1751962246122,-460.0,0.00028377,3]
[370329024,1751962246133,-673.23,0.00028377,3]
[370329025,1751962246142,-627.94,0.00028377,3]
[370329026,1751962246152,-1392.93,0.00028377,3]
[370329027,1751962246162,-1372.69,0.00028377,3]
[370329028,1751962246172,-460.0,0.00028377,3]
[370329029,1751962246181,-492.14,0.00028377,3]
[370329030,1751962246191,-460.0,0.00028377,3]
[370329031,1751962246201,-876.42,0.00028377,3]
[370329032,1751962246210,-460.0,0.00028377,3]
[370329033,1751962246220,-1304.46,0.00028377,3]
[370329034,1751962246229,-2158.73,0.00028377,3]
[370329035,1751962246239,-590.91,0.00028377,3]
[370329036,1751962246248,-1021.17,0.00028377,3]
[370329037,1751962246257,-167.36374064,0.00028377,3]
[370329038,1751962246267,-1059.54,0.00028377,3]
[370329040,1751962246277,-512.7,0.00028377,3]
[370329042,1751962246287,-1377.6,0.00028377,3]
[370329044,1751962246296,-1338.17,0.00028377,3]
[370329046,1751962246306,-460.0,0.00028377,3]
[370329048,1751962246315,-500.0,0.00028377,3]
[370329049,1751962246324,-460.0,0.00028377,3]
[370329051,1751962246334,-1842.72,0.00028377,3]
[370329053,1751962246343,-1271.84,0.00028377,3]
[370329055,1751962246353,-626.42,0.00028377,3]
[370329057,1751962246363,-763.32,0.00028377,3]
[370329059,1751962246372,-497.17,0.00028377,3]
[370329061,1751962246381,-460.0,0.00028377,3]
[370329063,1751962246392,-663.91,0.00028377,3]
[370329065,1751962246401,-460.0,0.00028377,3]
[370329067,1751962246410,-2913.98,0.00028377,3]
[370329069,1751962246419,-460.0,0.00028377,3]
[370329071,1751962246429,-2146.85,0.00028377,3]
[370329073,1751962246438,-460.0,0.00028377,3]
[370329075,1751962246448,-460.0,0.00028377,3]
[370329077,1751962246457,-460.0,0.00028377,3]
[370329079,1751962246466,-460.0,0.00028377,3]
[370329081,1751962246476,-3149.09,0.00028377,3]
[370329083,1751962246486,-563.54,0.00028377,3]
[370329085,1751962246495,-857.89,0.00028377,3]
[370329087,1751962246504,-460.0,0.00028377,3]
[370329089,1751962246514,-908.67,0.00028377,3]
[370329091,1751962246524,-974.25,0.00028377,3]
[370329093,1751962246534,-1247.25,0.00028377,3]
[370329095,1751962246543,-840.48,0.00028377,3]
[370329097,1751962246553,-619.62,0.00028377,3]
[370329099,1751962246563,-1253.28,0.00028377,3]
[370329101,1751962246573,-257.54388987,0.00028377,3]
[370329103,1751962246582,-460.0,0.00028378,3]
[370329105,1751962246592,-460.0,0.00028378,3]
[370329107,1751962246602,-256.93180636,0.00028378,3]
[370329109,1751962246611,-500.0,0.00028378,3]
[370329111,1751962246621,-460.0,0.00028378,3]
[370329113,1751962246630,-460.0,0.00028378,3]
[370329115,1751962246641,-460.0,0.00028378,3]
[370329117,1751962246651,-460.0,0.00028378,3]
[370329119,1751962246661,-460.0,0.00028378,3]
[370329121,1751962246671,-460.0,0.00028378,3]
[370329123,1751962246681,-460.0,0.00028378,3]
[370329125,1751962246690,-460.0,0.00028378,3]
[370329127,1751962246700,-460.0,0.00028378,3]
[370329129,1751962246710,-460.0,0.00028378,3]
[370329131,1751962246720,-462.13,0.00028378,3]
[370329133,1751962246729,-804.02,0.00028378,3]
[370329134,1751962246739,-545.38,0.00028378,3]
[370329135,1751962246749,-597.74,0.00028378,3]
[370329136,1751962246758,-460.0,0.00028378,3]
[370329137,1751962246768,-460.0,0.00028378,3]
[370329138,1751962246777,-460.0,0.00028378,3]
[370329139,1751962246786,-785.99,0.00028378,3]
[370329140,1751962246796,-572.45,0.00028378,3]
[370329141,1751962246806,-1513.28,0.00028378,3]
[370329142,1751962246815,-500.0,0.00028378,3]
[370329143,1751962246825,-1095.03,0.00028378,3]
[370329144,1751962246834,-460.0,0.00028378,3]
[370329145,1751962246844,-460.0,0.00028378,3]
[370329146,1751962246853,-460.0,0.00028378,3]
[370329147,1751962246863,-460.0,0.00028378,3]
[370329148,1751962246872,-460.0,0.00028378,3]
[370329150,1751962246883,-460.0,0.00028378,3]
[370329152,1751962246893,-460.0,0.00028378,3]
[370329154,1751962246904,-522.34,0.00028378,3]
[370329156,1751962246914,-460.0,0.00028378,3]
[370329158,1751962246923,-460.0,0.00028378,3]
[370329160,1751962246933,-1249.51,0.00028378,3]
[370329162,1751962246943,-460.0,0.00028378,3]
[370329165,1751962246952,-460.0,0.00028378,3]
[370329167,1751962246962,-460.0,0.00028378,3]
[370329169,1751962246972,-519.92,0.00028378,3]
[370329171,1751962246982,-460.0,0.00028378,3]
[370329173,1751962246992,-460.0,0.00028378,3]
[370329175,1751962247002,-559.41,0.00028378,3]
[370329177,1751962247012,-471.31,0.00028378,3]
[370329178,1751962247022,-669.06,0.00028378,3]
[370329179,1751962247033,-460.0,0.00028378,3]
[370329180,1751962247044,-460.0,0.00028378,3]
[370329181,1751962247054,-460.0,0.00028378,3]
[370329182,1751962247064,-460.0,0.00028378,3]
[370329183,1751962247074,-754.14,0.00028378,3]
[370329184,1751962247084,-460.0,0.00028378,3]
[370329185,1751962247094,-471.96,0.00028378,3]
[370329186,1751962247104,-460.0,0.00028378,3]
[370329187,1751962247113,-460.0,0.00028378,3]
[370329188,1751962247126,-460.0,0.00028378,3]
[370329189,1751962247136,-460.0,0.00028378,3]
[370329190,1751962247147,-460.0,0.00028378,3]
[370329191,1751962247157,-661.1,0.00028378,3]
[370329192,1751962247167,-460.0,0.00028378,3]
[370329193,1751962247177,-1812.37,0.00028378,3]
[370329194,1751962247186,-883.55,0.00028378,3]
[370329195,1751962247196,-460.0,0.00028378,3]
[370329196,1751962247207,-151.0,0.00028378,7]
[370329197,1751962247216,-504.55,0.00028378,3]
[370329198,1751962247227,-661.37,0.00028378,3]
[370329199,1751962247236,-1951.33,0.00028378,3]
[370329200,1751962247246,-860.3,0.00028378,3]
[370329201,1751962247256,-574.13,0.00028378,3]
[370329202,1751962247266,-153.728281,0.00028378,7]
[370329203,1751962247276,-460.0,0.00028378,3]
[370329204,1751962247285,-786.0,0.00028378,3]
[370329205,1751962247295,-1085.46,0.00028378,3]
[370329206,1751962247305,-521.04,0.00028378,3]
[370329207,1751962247315,-766.7,0.00028378,3]
[370329208,1751962247326,-967.22,0.00028378,3]
[370329209,1751962247336,-1157.25,0.00028378,3]
[370329210,1751962247346,-1214.13,0.00028378,3]
[370329211,1751962247356,-2259.05,0.00028378,3]
[370329212,1751962247366,-605.28,0.00028378,3]
[370329213,1751962247376,-2061.34,0.00028378,3]
[370329214,1751962247386,-819.23,0.00028378,3]
[370329215,1751962247397,-612.44,0.00028378,3]
[370329216,1751962247407,-576.17,0.00028378,3]
[370329217,1751962247417,-151.0,0.00028378,7]
[370329218,1751962247427,-1232.13,0.00028378,3]
[370329219,1751962247437,-499.75,0.00028378,3]
[370329220,1751962247447,-1801.08,0.00028378,3]
[370329221,1751962247457,-601.65,0.00028378,3]
[370329222,1751962247467,-5789.21,0.00028378,3]
[370329223,1751962247477,-876.8,0.00028378,3]
[370329224,1751962247487,-564.23,0.00028378,3]
[370329225,1751962247498,-507.27,0.00028378,3]
[370329226,1751962247508,-460.0,0.00028378,3]
[370329227,1751962247518,-672.09,0.00028378,3]
[370329228,1751962247528,-460.0,0.00028378,3]
[370329229,1751962247538,-1659.72,0.00028378,3]
[370329230,1751962247548,-531.59,0.00028378,3]
[370329231,1751962247559,-3603.45,0.00028378,3]
[370329232,1751962247569,-661.1,0.00028378,3]
[370329233,1751962247579,-750.46,0.00028378,3]
[370329234,1751962247590,-1257.55,0.00028378,3]
[370329235,1751962247600,-554.72,0.00028378,3]
[370329236,1751962247610,-490.88,0.00028378,3]
[370329237,1751962247621,-649.06,0.00028378,3]
[370329238,1751962247631,-460.0,0.00028378,3]
[370329239,1751962247642,-460.0,0.00028378,3]
[370329240,1751962247652,-560.84,0.00028378,3]
[370329241,1751962247664,-1010.26,0.00028378,3]
[370329242,1751962247674,-511.29,0.00028378,3]
[370329243,1751962247684,-1188.04,0.00028378,3]
[370329244,1751962247694,-460.0,0.00028378,3]
[370329245,1751962247704,-526.22,0.00028378,3]
[370329246,1751962247714,-460.0,0.00028378,3]
[370329247,1751962247724,-917.87,0.00028378,3]
[370329248,1751962247733,-460.0,0.00028378,3]
[370329249,1751962247743,-2323.65,0.00028378,3]
[370329250,1751962247753,-684.32,0.00028378,3]
[370329251,1751962247763,-460.0,0.00028378,3]
[370329252,1751962247772,-460.0,0.00028378,3]
[370329253,1751962247783,-500.0,0.00028378,3]
[370329254,1751962247793,-151.0,0.00028378,7]
[370329255,1751962247803,-37087.86,0.00028378,3]
[370329256,1751962247813,-151.0,0.00028378,7]
[370329257,1751962247823,-689.15,0.00028378,3]
[370329258,1751962247833,-460.0,0.00028378,3]
[370329259,1751962247843,-151.0,0.00028378,7]
[370329260,1751962247852,-151.0,0.00028378,7]
[370329261,1751962247862,-463.04,0.00028378,3]
[370329262,1751962247872,-961.07,0.00028378,3]
[370329263,1751962247882,-656.25,0.00028378,3]
[370329264,1751962247892,-3394.71,0.00028378,3]
[370329265,1751962247901,-151.0,0.00028378,7]
[370329266,1751962247911,-676.18,0.00028378,3]
[370329267,1751962247921,-151.0,0.00028378,7]
[370329268,1751962247930,-460.0,0.00028378,3]
[370329269,1751962247940,-1538.32,0.00028378,3]
[370329270,1751962247950,-775.81,0.00028378,3]
[370329271,1751962247960,-1297.15,0.00028378,3]
[370329272,1751962247970,-496.84,0.00028378,3]
[370329273,1751962247980,-858.01,0.00028378,3]
[370329274,1751962247989,-551.88,0.00028378,3]
[370329275,1751962247999,-1812.33,0.00028378,3]
[370329276,1751962248009,-151.0,0.00028378,7]
[370329277,1751962248019,-197.59573905,0.00028378,3]
[370329278,1751962248028,-500.0,0.00028378,3]
[370329279,1751962248039,-1063.3,0.00028378,3]
[370329280,1751962248052,-460.0,0.00028378,3]
[370329281,1751962248062,-1374.75,0.00028378,3]
[370329282,1751962248072,-150.0,0.00028381,2]
[370329283,1751962248083,-150.0,0.00028382,2]
[370329284,1751962248093,-7021.589211,0.00028384,16]
[370329285,1751962248103,-397679.81303366,0.00028384,16]
[370329286,1751962248113,-545.61,0.00028384,3]
[370329287,1751962248122,-460.0,0.00028384,3]
[370329288,1751962248133,-460.0,0.00028384,3]
[370329289,1751962248144,-460.0,0.00028384,3]
[370329290,1751962248154,-335.66032918,0.00028384,3]
[370329291,1751962248164,-460.0,0.00028384,3]
[370329292,1751962248173,-460.0,0.00028384,3]
[370329293,1751962248183,-460.0,0.00028384,3]
[370329294,1751962248194,-460.0,0.00028384,3]
[370329295,1751962248203,-460.0,0.00028384,3]
[370329296,1751962248214,-460.0,0.00028384,3]
[370329297,1751962248224,-460.0,0.00028384,3]
[370329298,1751962248234,-460.0,0.00028384,3]
[370329299,1751962248244,-460.0,0.00028384,3]
[370329300,1751962248255,-460.0,0.00028384,3]
[370329301,1751962248265,-460.0,0.00028384,3]
[370329302,1751962248275,-460.0,0.00028384,3]
[370329303,1751962248286,-460.0,0.00028384,3]
[370329304,1751962248296,-460.0,0.00028384,3]
[370329305,1751962248306,-460.0,0.00028384,3]
[370329306,1751962248316,-500.0,0.00028384,3]
[370329307,1751962248327,-460.0,0.00028384,3]
[370329308,1751962248337,-460.0,0.00028384,3]
[370329309,1751962248347,-460.0,0.00028384,3]
[370329310,1751962248358,-460.0,0.00028384,3]
[370329311,1751962248367,-213.19209878,0.00028384,3]
[370329312,1751962248378,-460.0,0.00028384,3]
[370329313,1751962248389,-460.0,0.00028384,3]
[370329314,1751962248399,-460.0,0.00028384,3]
[370329315,1751962248410,-460.0,0.00028384,3]
[370329316,1751962248420,-556.20574897,0.00028384,3]
[370329317,1751962248430,-460.0,0.00028384,3]
[370329318,1751962248440,-460.0,0.00028384,3]
[370329319,1751962248449,-460.0,0.00028384,3]
[370329320,1751962248459,-460.0,0.00028384,3]
[370329321,1751962248469,-460.0,0.00028384,3]
[370329322,1751962248479,-460.0,0.00028384,3]